fUSD/lending_fUSD_20250101
["ID","MTS","AMOUNT","RATE_DAILY","PERIOD"]
[347388504,1735755415408,-500.0,0.0002717,120]
[347388505,1735755415457,-220.19511948,0.000272,44]
[347388506,1735755415507,-419.35507904,0.0002736,120]
[347388507,1735755415556,-2000.0,0.00027397,30]
[347388508,1735755415606,-2000.0,0.00027397,30]
[347388509,1735755415655,-2000.0,0.00027397,30]
[347388510,1735755415702,-2000.0,0.00027397,30]
[347388511,1735755415750,-2000.0,0.00027397,30]
[347388512,1735755415799,-2000.0,0.00027397,30]
[347388513,1735755415847,-2000.0,0.00027397,30]
[347388514,1735755415895,-2000.0,0.00027397,30]
[347388515,1735755415942,-2000.0,0.00027397,30]
[347388516,1735755415990,-2000.0,0.00027397,30]
[347388517,1735755416039,-2000.0,0.00027397,30]
[347388518,1735755416088,-2000.0,0.00027397,30]
[347388519,1735755416136,-2000.0,0.00027397,30]
[347388520,1735755416184,-2000.0,0.00027397,30]
[347388521,1735755416233,-2000.0,0.00027397,30]
[347388522,1735755416281,-2000.0,0.00027397,30]
[347388523,1735755416328,-2000.0,0.00027397,30]
[347388524,1735755416375,-2000.0,0.00027397,30]
[347388525,1735755416430,-2000.0,0.00027397,30]
[347388526,1735755416479,-1692.75980312,0.00027397,30]
[347388527,1735755416532,-200.0,0.00027397,60]
[347388528,1735755416581,-150.0,0.00027397,120]
[347388529,1735755416634,-500.0,0.0002777,120]
[347388530,1735755416687,-150.0,0.00027945,120]
[347388531,1735755416735,-177.28,0.00027945,91]
[347388532,1735755416789,-3000.0,0.00028,120]
[347388533,1735755416846,-496.87336667,0.00028028,30]
[347388534,1735755416904,-500.0,0.0002837,120]
[347388535,1735755416959,-500.0,0.0002897,120]
[347388536,1735755417008,-3600.0,0.00029,30]
[347388537,1735755417064,-197.87,0.00029,31]
[347388538,1735755417118,-197.87,0.00029,31]
[347388539,1735755417174,-197.87,0.00029,31]
[347388540,1735755417229,-197.87,0.00029,31]
[347388541,1735755417285,-197.87,0.00029,31]
[347388542,1735755417337,-197.87,0.00029,31]
[347388543,1735755417391,-197.87,0.00029,31]
[347388544,1735755417446,-197.87,0.00029,31]
[347388545,1735755417501,-197.87,0.00029,31]
[347388546,1735755417556,-197.87,0.00029,31]
[347388547,1735755417610,-197.87,0.00029,31]
[347388548,1735755417665,-197.87,0.00029,31]
[347388549,1735755417717,-197.87,0.00029,31]
[347388550,1735755417771,-197.87,0.00029,31]
[347388551,1735755417829,-197.87,0.00029,31]
[347388552,1735755417883,-197.87,0.00029,31]
[347388553,1735755417936,-197.87,0.00029,31]
[347388554,1735755417992,-197.87,0.00029,31]
[347388555,1735755418048,-197.87,0.00029,31]
[347388556,1735755418103,-197.87,0.00029,31]
[347388557,1735755418160,-197.87,0.00029,31]
[347388558,1735755418214,-197.87,0.00029,31]
[347388559,1735755418269,-197.87,0.00029,31]
[347388560,1735755418322,-197.87,0.00029,31]
[347388561,1735755418371,-27550.18962574,0.00029174,60]
[347388562,1735755418419,-500.0,0.0002957,120]
[347388563,1735755418469,-1225.32,0.00029578,30]
[347388564,1735755418517,-425.0,0.00029885,30]
[347388565,1735755418565,-358.229,0.0002989,120]
[347388566,1735755418611,-2999.999999,0.0003,30]
[347388567,1735755418656,-2665.16530984,0.0003,30]
[347388568,1735755418701,-4004.43402998,0.0003,30]
[347388569,1735755418747,-3249.6479009,0.0003,31]
[347388570,1735755418793,-11358.14841989,0.0003,30]
[347388571,1735755418838,-17004.9994056,0.0003,30]
[347388572,1735755418884,-151.0,0.0003,120]
[347388573,1735755418931,-2048.82927271,0.0003,120]
[347388574,1735755418978,-253.85555556,0.0003,120]
[347388575,1735755419027,-3000.0,0.0003,120]
[347388576,1735755419077,-200.0,0.00030137,60]
[347388577,1735755419124,-500.0,0.0003017,120]
[347388578,1735755419173,-150.0,0.00030228,120]
[347388579,1735755419220,-555.55555,0.000303,120]
[347388580,1735755419270,-548.0,0.00030613,30]
[347388581,1735755419319,-500.0,0.0003077,120]
[347388582,1735755419368,-250.0,0.000308,30]
[347388583,1735755419416,-253.85555556,0.00030849,120]
[347388584,1735755419463,-151.0,0.00030904,120]
[347388585,1735755419508,-1800.0,0.00031,32]
[347388586,1735755419554,-358.26,0.0003109,120]
[347388587,1735755419602,-500.0,0.0003137,120]
[347388588,1735755419651,-555.55555,0.000315,120]
[347388589,1735755419698,-253.85555556,0.00031699,120]
[347388590,1735755419743,-151.0,0.00031808,120]
[347388591,1735755419791,-500.0,0.0003197,120]
[347388592,1735755419837,-1800.0,0.00032,33]
[347388593,1735755419887,-3000.0,0.00032,120]
[347388594,1735755419936,-1225.32,0.00032162,30]
[347388595,1735755419985,-358.234,0.0003229,120]
[347388596,1735755420034,-253.85555556,0.00032548,120]
[347388597,1735755420087,-500.0,0.0003257,120]
[347388598,1735755420138,-555.55555,0.000327,120]
[347388599,1735755420379,-151.0,0.00032712,120]
[347388600,1735755420432,-200.0,0.00032877,60]
[347388601,1735755420482,-2452.73724672,0.00033,120]
[347388602,1735755420532,-194.95534931,0.00033,120]
[347388603,1735755420584,-1800.0,0.00033,34]
[347388604,1735755420634,-500.0,0.00033057,60]
[347388605,1735755420687,-500.0,0.0003317,120]
[347388606,1735755420737,-253.85555556,0.00033397,120]
[347388607,1735755420785,-150.0,0.00033457,120]
[347388608,1735755420838,-358.246,0.0003349,120]
[347388609,1735755420907,-197.87,0.000335,31]
[347388610,1735755420962,-197.87,0.000335,31]
[347388611,1735755421017,-197.87,0.000335,31]
[347388612,1735755421072,-197.87,0.000335,31]
[347388613,1735755421127,-197.87,0.000335,31]
[347388614,1735755421183,-197.87,0.000335,31]
[347388615,1735755421234,-197.87,0.000335,31]
[347388616,1735755421288,-197.87,0.000335,31]
[347388617,1735755421341,-197.87,0.000335,31]
[347388618,1735755421394,-197.87,0.000335,31]
[347388619,1735755421447,-197.87,0.000335,31]
[347388620,1735755421502,-197.87,0.000335,31]
[347388621,1735755421551,-151.0,0.00033616,120]
[347388622,1735755421599,-768.0,0.00033674,30]
[347388623,1735755421653,-500.0,0.0003377,120]
[347388624,1735755421703,-555.55555,0.000339,120]
[347388625,1735755421754,-1800.0,0.00034,35]
[347388626,1735755421805,-3000.0,0.00034,120]
[347388627,1735755421853,-394.974761,0.00034,30]
[347388628,1735755421902,-500.0,0.00034153,60]
[347388629,1735755421951,-253.85555556,0.00034247,120]
[347388630,1735755422004,-500.0,0.0003437,120]
[347388631,1735755422055,-700.0,0.00034427,60]
[347388632,1735755422109,-151.0,0.00034521,120]
[347388633,1735755422160,-358.278,0.0003469,120]
[347388634,1735755422213,-1225.32,0.00034746,120]
[347388635,1735755422263,-500.0,0.0003497,120]
[347388636,1735755422313,-3500.3551456,0.00034987,30]
[347388637,1735755422361,-10000.0,0.00035,30]
[347388638,1735755422413,-4682.23426264,0.00035,120]
[347388639,1735755422466,-200.0,0.00035,120]
[347388640,1735755422516,-159.079126,0.00035,30]
[347388641,1735755422566,-2993.868848,0.00035,31]
[347388642,1735755422619,-2926.885,0.00035053,40]
[347388643,1735755422668,-253.85555556,0.00035096,120]
[347388644,1735755422716,-555.55555,0.000351,120]
[347388645,1735755422766,-4235.3,0.000352,30]
[347388646,1735755422817,-258.73781524,0.00035249,60]
[347388647,1735755422869,-177.28,0.00035342,91]
[347388648,1735755422918,-151.0,0.00035425,120]
[347388649,1735755422968,-700.0,0.00035523,60]
[347388650,1735755423018,-500.0,0.0003557,120]
[347388651,1735755423073,-200.0,0.00035616,60]
[347388652,1735755423128,-358.286,0.0003589,120]
[347388653,1735755423183,-253.85555556,0.00035945,120]
[347388654,1735755423241,-3000.0,0.00036,120]
[347388655,1735755423297,-250.0,0.00036,30]
[347388656,1735755423351,-500.0,0.0003617,120]
[347388657,1735755423407,-555.55555,0.000363,120]
[347388658,1735755423463,-151.0,0.00036329,120]
[347388659,1735755423517,-700.0,0.00036619,60]
[347388660,1735755423570,-1647.25750007,0.00036666,120]
[347388661,1735755423629,-500.0,0.0003677,120]
[347388662,1735755423696,-253.85555556,0.00036795,120]
[347388663,1735755423747,-2100.03531208,0.00037,90]
[347388664,1735755423807,-12311.0,0.00037,117]
[347388665,1735755423859,-1075.0,0.00037042,30]
[347388666,1735755423915,-358.299,0.0003709,120]
[347388667,1735755423966,-151.0,0.00037233,120]
[347388668,1735755424022,-1225.32,0.0003733,120]
[347388669,1735755424074,-500.0,0.0003737,120]
[347388670,1735755424130,-555.55555,0.000375,120]
[347388671,1735755424184,-253.85555556,0.00037644,120]
[347388672,1735755424238,-700.0,0.00037715,60]
[347388673,1735755424290,-1660.64913561,0.000378,120]
[347388674,1735755424342,-500.0,0.0003797,120]
[347388675,1735755424394,-10000.0,0.00038,60]
[347388676,1735755424444,-10000.0,0.00038,30]
[347388677,1735755424496,-215.57385058,0.00038,120]
[347388678,1735755424547,-3286.47165522,0.00038,120]
[347388679,1735755424600,-3000.0,0.00038,120]
[347388680,1735755424651,-250.0,0.00038,30]
[347388681,1735755424700,-1251.94006,0.00038088,30]
[347388682,1735755424750,-151.0,0.00038137,120]
[347388683,1735755424800,-1251.94006,0.00038288,30]
[347388684,1735755424849,-358.242,0.0003829,120]
[347388685,1735755424898,-200.0,0.00038356,60]
[347388686,1735755424946,-216.29862596,0.000384,33]
[347388687,1735755424995,-1251.94006,0.00038488,30]
[347388688,1735755425046,-253.85555556,0.00038493,120]
[347388689,1735755425097,-72000.0,0.000385,120]
[347388690,1735755425147,-500.0,0.0003857,120]
[347388691,1735755425196,-1251.94006,0.00038688,30]
[347388692,1735755425247,-555.55555,0.000387,120]
[347388693,1735755425296,-325.74046251,0.00038811,60]
[347388694,1735755425569,-300517.42421416,0.00039,30]
[347388695,1735755425622,-1387.04867793,0.00039,120]
[347388696,1735755425673,-151.0,0.00039041,120]
[347388697,1735755425725,-1588.91,0.00039054,120]
[347388698,1735755425774,-311.88,0.00039064,120]
[347388699,1735755425822,-1251.94006,0.00039088,30]
[347388700,1735755425872,-500.0,0.0003917,120]
[347388701,1735755425922,-27084.2,0.00039172,117]
[347388702,1735755425973,-2183.79,0.00039177,120]
[347388703,1735755426023,-1251.94006,0.00039288,30]
[347388704,1735755426072,-2181.44,0.0003934,120]
[347388705,1735755426121,-253.85555556,0.00039342,120]
[347388706,1735755426169,-577.61132625,0.000394,30]
[347388707,1735755426218,-1251.94006,0.00039488,30]
[347388708,1735755426270,-358.239,0.0003949,120]
[347388709,1735755426318,-1664.12,0.00039563,120]
[347388710,1735755426364,-2268.02,0.00039571,120]
[347388711,1735755426411,-1251.94006,0.00039688,30]
[347388712,1735755426455,-1268.29,0.00039745,120]
[347388713,1735755426500,-791.21,0.00039745,120]
[347388714,1735755426546,-500.0,0.0003977,120]
[347388715,1735755426591,-2500.0,0.00039786,120]
[347388716,1735755426638,-2679.81,0.00039822,120]
[347388717,1735755426685,-555.5556,0.000399,120]
[347388718,1735755426731,-1225.32,0.00039914,120]
[347388719,1735755426776,-1097.52,0.00039932,120]
[347388720,1735755426821,-151.0,0.00039945,120]
[347388721,1735755426866,-1417.25,0.00039992,120]
[347388722,1735755426912,-477.12749073,0.0004,30]
[347388723,1735755426957,-14030.91290079,0.0004,30]
[347388724,1735755427004,-3685.15944526,0.0004,30]
[347388725,1735755427049,-192.53762523,0.0004,30]
[347388726,1735755427097,-35059.04968435,0.0004,30]
[347388727,1735755427145,-100000.0,0.0004,30]
[347388728,1735755427193,-1495.0,0.0004,30]
[347388729,1735755427241,-20000.0,0.0004,30]
[347388730,1735755427289,-100000.0,0.0004,30]
[347388731,1735755427335,-10000.0,0.0004,30]
[347388732,1735755427382,-3286.47165522,0.0004,120]
[347388733,1735755427431,-1185.39562002,0.0004,120]
[347388734,1735755427479,-477.76214023,0.0004,120]
[347388735,1735755427528,-269000.0,0.0004,120]
[347388736,1735755427575,-185.23784392,0.0004,120]
[347388737,1735755427625,-2000.0,0.0004,120]
[347388738,1735755427672,-250.0,0.0004,30]
[347388739,1735755427721,-2110.0,0.00040096,30]
[347388740,1735755427768,-253.85555556,0.00040192,120]
[347388741,1735755427816,-500.0,0.0004037,120]
[347388742,1735755427863,-2110.0,0.00040596,30]
[347388743,1735755427911,-268.342,0.00040685,120]
[347388744,1735755427958,-268.342,0.00040685,120]
[347388745,1735755428007,-268.342,0.00040685,120]
[347388746,1735755428056,-268.341,0.00040685,120]
[347388747,1735755428104,-268.342,0.00040685,120]
[347388748,1735755428153,-358.269,0.0004069,120]
[347388749,1735755428199,-1505.0,0.00040746,60]
[347388750,1735755428245,-180477.40688764,0.000408,30]
[347388751,1735755428290,-151.0,0.00040849,120]
[347388752,1735755428337,-10000.0,0.000409,30]
[347388753,1735755428382,-500.0,0.0004097,120]
[347388754,1735755428428,-282.29302845,0.00040996,120]
[347388755,1735755428476,-9972.16,0.00040996,120]
[347388756,1735755428523,-10125.6,0.00040996,120]
[347388757,1735755428571,-9943.86,0.00040996,120]
[347388758,1735755428619,-285.47,0.00040996,120]
[347388759,1735755428669,-10060.35,0.00040996,120]
[347388760,1735755428721,-9894.81,0.00040996,120]
[347388761,1735755428774,-9815.05,0.00040996,120]
[347388762,1735755428822,-475.13552158,0.00040999,120]
[347388763,1735755428872,-2733.0,0.00041,30]
[347388764,1735755428921,-10001.0,0.00041,30]
[347388765,1735755428971,-253.85555556,0.00041041,120]
[347388766,1735755429021,-5000.0,0.00041095,45]
[347388767,1735755429070,-500.0,0.00041095,30]
[347388768,1735755429118,-500.0,0.00041095,30]
[347388769,1735755429167,-500.0,0.00041095,30]
[347388770,1735755429215,-500.0,0.00041095,30]
[347388771,1735755429265,-284.75300363,0.00041095,30]
[347388772,1735755429311,-200.0,0.00041096,60]
[347388773,1735755429360,-200.0,0.00041096,120]
[347388774,1735755435221,150.0,0.00040096,30]
[347388775,1735755435467,150.0,0.00040192,120]
[347388776,1735755435889,150.0,0.0004037,120]
[347388777,1735755435951,150.0,0.00040596,30]
[347388778,1735755436586,150.0,0.00040685,120]
[347388779,1735755436650,1200.0,0.00041096,120]
[347388780,1735755436726,150.0,0.0004069,120]
[347388781,1735755436855,150.0,0.00040746,60]
[347388782,1735755436961,110000.0,0.00024,40]
[347388783,1735755437126,150.0,0.000408,30]
[347388784,1735755437258,150.0,0.00040849,120]
[347388786,1735755443431,159.0,0.00024722,30]
[347388788,1735755525548,1000.0,0.00024722,30]
[347388789,1735755525597,1000.0,0.00024722,30]
[347388790,1735755525922,1000.0,0.00024722,30]
[347388791,1735755526331,1000.0,0.00024722,30]
[347388792,1735755526687,1000.0,0.00024722,30]
[347388793,1735755527090,1000.0,0.00024722,30]
[347388794,1735755527459,1000.0,0.00024722,30]
[347388795,1735755527810,1000.0,0.00024722,30]
[347388796,1735755528120,1000.0,0.00024722,30]
[347388797,1735755528700,1000.0,0.00024722,30]
[347388798,1735755529020,1000.0,0.00024722,30]
[347388799,1735755529377,1000.0,0.00024722,30]
[347388800,1735755529759,1000.0,0.00024722,30]
[347388801,1735755530154,1000.0,0.00024722,30]
[347388802,1735755530580,1000.0,0.00024722,30]
[347388803,1735755530960,1000.0,0.00024722,30]
[347388804,1735755531406,1000.0,0.00024722,30]
[347388805,1735755531830,1000.0,0.00024722,30]
[347388806,1735755532480,1000.0,0.00024722,30]
[347388807,1735755532910,1000.0,0.00024722,30]
[347388808,1735755532976,203.0,0.00024722,120]
[347388809,1735755533417,1000.0,0.00024722,30]
[347388810,1735755533827,1000.0,0.00024722,30]
[347388811,1735755534525,1000.0,0.00024722,30]
[347388812,1735755534989,1000.0,0.00024722,30]
[347388813,1735755536052,1000.0,0.00024722,30]
[347388814,1735755536371,1000.0,0.00024722,30]
[347388815,1735755536591,1000.0,0.00024722,30]
[347388816,1735755536863,1000.0,0.00024722,30]
[347388817,1735755537299,1000.0,0.00024722,30]
[347388818,1735755537744,1000.0,0.00024722,30]
[347388819,1735755538240,1000.0,0.00024722,30]
[347388820,1735755540527,204.17631235,0.00024722,60]
[347388821,1735755550360,1000.0,0.00024722,60]
[347388822,1735755563223,1000.0,0.00024529,30]
[347388823,1735755568066,3286.47165522,0.00024529,120]
[347388824,1735755576027,1000.0,0.00024529,60]
[347388825,1735755589155,1000.0,0.00024529,30]
[347388826,1735755601823,1000.0,0.00024529,60]
[347388827,1735755614621,1000.0,0.00024529,60]
[347388828,1735755627441,1000.0,0.00024529,30]
[347388829,1735755640242,1000.0,0.00024529,60]
[347388830,1735755653755,1000.0,0.00024529,30]
[347388831,1735755665833,1000.0,0.00024529,30]
[347388832,1735755670852,250.0,0.00024529,30]
[347388833,1735755671595,250.0,0.00024529,30]
[347388834,1735755671981,250.0,0.00024529,30]
[347388835,1735755672596,250.0,0.00024529,30]
[347388836,1735755673032,250.0,0.00024529,30]
[347388837,1735755673454,250.0,0.00024529,30]
[347388838,1735755673912,250.0,0.00024529,30]
[347388839,1735755674253,250.0,0.00024529,30]
[347388840,1735755674929,250.0,0.00024529,30]
[347388841,1735755675068,250.0,0.00024529,30]
[347388842,1735755675638,250.0,0.00024529,30]
[347388843,1735755675835,250.0,0.00024529,30]
[347388844,1735755678636,1000.0,0.00024529,60]
[347388845,1735755739440,242.733091,0.00024529,30]
[347388846,1735755743243,159.0,0.00024529,30]
[347388847,1735755763145,202.7,0.00024529,30]
[347388848,1735755763520,202.7,0.00024529,30]
[347388849,1735755763937,202.7,0.00024529,30]
[347388850,1735755764427,202.7,0.00024529,30]
[347388851,1735755908867,3131.59066895,0.00024547,30]
[347388852,1735755910464,502.89431118,0.00024547,30]
[347388853,1735755911617,375.85085979,0.00024547,30]
[347388854,1735755911768,2381.54110346,0.00024547,30]
[347388855,1735755914135,862.17397122,0.00024547,30]
[347388856,1735755915454,1000.0,0.00024547,30]
[347388857,1735755915739,2730.60845553,0.00024547,30]
[347388858,1735755915774,2339.13171017,0.00024547,30]
[347388859,1735755921140,1979.02508753,0.00024547,30]
[347388860,1735755922580,2124.69042627,0.00024547,30]
[347388861,1735755923035,727.54890741,0.00024547,30]
[347388862,1735755927512,374.09006824,0.00024547,30]
[347388863,1735755933927,590.58171957,0.00024547,30]
[347388864,1735755936021,260.98960791,0.00024547,30]
[347388865,1735755939093,2500.0,0.00024547,30]
[347388866,1735755943901,282.73146394,0.00024547,120]
[347388867,1735755947923,501.63551,0.00024547,30]
[347388868,1735755949270,844.508765,0.00024547,30]
[347388869,1735755951873,2029.51241,0.00024547,30]
[347388870,1735755953829,3000.0,0.00024547,30]
[347388871,1735755957594,852.58607733,0.00024547,30]
[347388872,1735755967479,918.35553511,0.00024547,30]
[347388873,1735755970353,250.0,0.00024547,30]
[347388874,1735755971015,342.462141,0.00024547,30]
[347388875,1735755973496,205.54703672,0.00024547,30]
[347388876,1735755973900,948.74345644,0.00024547,30]
[347388877,1735755986761,421.63,8.224e-05,2]
[347388878,1735755990105,346.76274972,0.00024547,30]
[347388879,1735756042496,159.0,0.00024547,30]
[347388880,1735756065745,3034.11633637,0.00024547,30]
[347388881,1735756066312,2004.20438297,0.00024547,120]
[347388882,1735756087049,872.68101551,0.00024547,30]
[347388884,1735756106425,200.98429563,0.00024547,30]
[347388885,1735756106800,720.43384183,0.00024547,120]
[347388886,1735756109991,263.24999858,0.00024547,30]
[347388887,1735756110168,2654.30553914,0.00024547,30]
[347388888,1735756110325,257.60588614,0.00024547,120]
[347388889,1735756110521,1743.84149164,0.00024547,30]
[347388890,1735756110709,2293.78221235,0.00024547,30]
[347388891,1735756111054,9006.63734895,0.00024547,30]
[347388892,1735756113405,1443.8028326,0.00024547,30]
[347388893,1735756113830,1099.87047585,0.00024547,30]
[347388894,1735756114028,297.38280311,0.00024547,30]
[347388896,1735756114288,2166.63729179,0.00024547,30]
[347388898,1735756114344,11507.59791812,0.00024547,90]
[347388902,1735756116201,1000.0,0.00024547,30]
[347388903,1735756116239,275.0,0.00024547,30]
[347388904,1735756116575,1000.0,0.00024547,30]
[347388905,1735756117323,1000.0,0.00024547,30]
[347388906,1735756117618,1000.0,0.00024547,30]
[347388907,1735756118020,1000.0,0.00024547,30]
[347388908,1735756118388,1000.0,0.00024547,30]
[347388910,1735756118948,2000.0,0.00024547,30]
[347388911,1735756119000,1000.0,0.00024547,30]
[347388912,1735756119442,1000.0,0.00024547,30]
[347388913,1735756119546,2572.50644756,0.00024547,30]
[347388914,1735756119768,421.43345914,0.00024547,30]
[347388915,1735756119824,1000.0,0.00024547,30]
[347388916,1735756120198,1000.0,0.00024547,30]
[347388917,1735756120642,1000.0,0.00024547,30]
[347388918,1735756121273,1000.0,0.00024547,30]
[347388920,1735756121685,1000.0,0.00024547,30]
[347388921,1735756121839,9893.73719386,0.00024547,120]
[347388923,1735756122029,1000.0,0.00024547,30]
[347388924,1735756122674,1000.0,0.00024547,30]
[347388925,1735756122989,1000.0,0.00024547,30]
[347388926,1735756124245,1000.0,0.00024547,30]
[347388927,1735756124385,1000.0,0.00024547,30]
[347388928,1735756124570,1000.0,0.00024547,30]
[347388929,1735756124692,1000.0,0.00024547,30]
[347388930,1735756125086,1000.0,0.00024547,30]
[347388931,1735756125473,1000.0,0.00024547,30]
[347388932,1735756125886,1000.0,0.00024547,30]
[347388933,1735756126266,1000.0,0.00024547,30]
[347388934,1735756126689,1000.0,0.00024547,30]
[347388935,1735756127077,1223.610692,0.00024547,30]
[347388950,1735756231845,-232.22,9.932e-05,2]
[347388951,1735756231855,-157.9964,9.968e-05,2]
[347388952,1735756231902,-95.3536,9.968e-05,2]
[347388953,1735756231911,-250.0,9.985e-05,2]
[347388954,1735756231921,-1000.0,9.993e-05,2]
[347388955,1735756231931,-335.35,0.00010137,2]
[347388956,1735756231944,-300.0,0.000103,3]
[347388957,1735756231953,-700.0,0.000104,3]
[347388958,1735756231963,-344.254,0.0001045,2]
[347388959,1735756231972,-421.63,0.00010488,2]
[347388960,1735756231981,-776.05074707,0.000105,3]
[347388961,1735756231992,-323.94925293,0.000105,3]
[347388962,1735756232001,-1400.0,0.000106,3]
[347388963,1735756232010,-1113.0,0.000106,2]
[347388964,1735756232020,-260.47,0.000107,2]
[347388965,1735756232029,-1800.0,0.000107,3]
[347388966,1735756232038,-300.0,0.000108,3]
[347388967,1735756232047,-300.0,0.00010877,2]
[347388968,1735756232056,-29107.20271,0.00010878,2]
[347388969,1735756232066,-2341.508,0.000109,2]
[347388970,1735756232075,-300.0,0.000109,3]
[347388971,1735756232084,-1859.0,0.0001091,2]
[347388972,1735756232093,-3774.0,0.0001091,2]
[347388973,1735756232102,-919.0,0.0001091,2]
[347388974,1735756232111,-819.0,0.0001091,2]
[347388975,1735756232120,-1257.0,0.0001091,2]
[347388976,1735756232129,-536.0,0.0001091,2]
[347388977,1735756232138,-3720.0,0.0001091,2]
[347388978,1735756232147,-1102.0,0.0001091,2]
[347388979,1735756232157,-1266.0,0.0001091,2]
[347388980,1735756232167,-636.0,0.0001091,2]
[347388981,1735756232178,-2013.0,0.0001091,2]
[347388982,1735756232187,-150.0,0.0001091,2]
[347388983,1735756232196,-160.46129142,0.00010957,2]
[347388984,1735756232206,-892.683999,0.00010958,2]
[347388985,1735756232215,-2205.64,0.00010958,2]
[347388986,1735756232224,-500.0,0.00010958,2]
[347388987,1735756232234,-500.0,0.00010958,2]
[347388988,1735756232243,-500.0,0.00010958,2]
[347388989,1735756232252,-500.0,0.00010958,2]
[347388990,1735756232261,-11210.2,0.00010958,2]
[347388991,1735756232271,-500.0,0.00010958,2]
[347388992,1735756232280,-500.0,0.00010958,2]
[347388993,1735756232290,-500.0,0.00010958,2]
[347388995,1735756232300,-722.29,0.00010958,2]
[347388997,1735756232309,-360.69801968,0.00010958,2]
[347388999,1735756232319,-1061.47,0.00010958,2]
[347389001,1735756232328,-1284.76,0.00010958,2]
[347389003,1735756232337,-500.0,0.00010958,2]
[347389005,1735756232347,-500.0,0.00010958,2]
[347389008,1735756232357,-500.0,0.00010958,2]
[347389010,1735756232367,-500.0,0.00010958,2]
[347389011,1735756232376,-3287.03,0.00010958,2]
[347389012,1735756232385,-500.0,0.00010958,2]
[347389013,1735756232394,-671.81,0.00010958,2]
[347389014,1735756232403,-500.0,0.00010958,2]
[347389015,1735756232412,-1290.19,0.00010958,2]
[347389016,1735756232421,-500.0,0.00010958,2]
[347389017,1735756232430,-500.0,0.00010958,2]
[347389018,1735756232440,-500.0,0.00010958,2]
[347389019,1735756232449,-806.26,0.00010958,2]
[347389020,1735756232458,-500.0,0.00010958,2]
[347389021,1735756232467,-500.0,0.00010958,2]
[347389022,1735756232477,-500.0,0.00010958,2]
[347389023,1735756232487,-500.0,0.00010958,2]
[347389024,1735756232496,-500.0,0.00010958,2]
[347389025,1735756232505,-687.8,0.00010958,2]
[347389027,1735756232514,-500.0,0.00010958,2]
[347389028,1735756232524,-500.0,0.00010958,2]
[347389029,1735756232533,-500.0,0.00010958,2]
[347389030,1735756232543,-500.0,0.00010958,2]
[347389031,1735756232553,-500.0,0.00010958,2]
[347389032,1735756232563,-897.93,0.00010958,2]
[347389033,1735756232572,-500.0,0.00010958,2]
[347389034,1735756232581,-500.0,0.00010958,2]
[347389035,1735756232590,-500.0,0.00010958,2]
[347389036,1735756232601,-761.76,0.00010958,2]
[347389037,1735756232610,-500.0,0.00010958,2]
[347389038,1735756232619,-500.0,0.00010958,2]